lending/lending_fUSD_20260209
["ID","MTS","AMOUNT","RATE_DAILY","PERIOD"]
[404896269,1770660642422,-160.0,0.000289,3]
[404896270,1770660642431,-5000.0,0.00029398,2]
[404896271,1770660642440,-151.0,0.00029555,2]
[404896272,1770660642449,-213.0,0.00029555,2]
[404896273,1770660642458,-150.486,0.00029555,2]
[404896274,1770660642467,-150.391,0.00029555,2]
[404896275,1770660642476,-150.306,0.00029555,2]
[404896276,1770660642485,-150.0,0.00029555,2]
[404896277,1770660642494,-151.0,0.00029555,2]
[404896278,1770660642503,-150.405,0.00029555,2]
[404896279,1770660642512,-426.18297887,0.00029628,2]
[404896280,1770660642521,-1000.0,0.00029664,2]
[404896281,1770660642530,-67299.40833468,0.000299,2]
[404896282,1770660642539,-6554.18533604,0.0002993,2]
[404896283,1770660642549,-169.18991897,0.00029964,2]
[404896284,1770660642558,-3485.0,0.00029965,2]
[404896285,1770660642567,-353.098,0.00029965,2]
[404896286,1770660642576,-616.0,0.00029965,2]
[404896287,1770660642585,-918.0,0.00029965,2]
[404896288,1770660642596,-3256.0,0.00029965,2]
[404896289,1770660642606,-6587.0,0.00029965,2]
[404896290,1770660642616,-19891.59837817,0.0003,2]
[404896291,1770660642626,-800.72651634,0.0003,2]
[404896292,1770660642636,-10000.0,0.0003,2]
[404896293,1770660642645,-153.13,0.0003,2]
[404896294,1770660642656,-153.13,0.0003,2]
[404896295,1770660642666,-2550.0,0.00030081,2]
[404896296,1770660642676,-2173.636,0.000302,2]
[404896297,1770660642685,-2173.636,0.000302,2]
[404896298,1770660642694,-2173.63,0.000302,2]
[404896299,1770660642704,-500.0,0.00030301,2]
[404896300,1770660642713,-12649.0,0.00030526,2]
[404896301,1770660642723,-6875.0,0.000306,2]
[404896302,1770660642732,-150.29839688,0.00030681,2]
[404896303,1770660642741,-207.68080368,0.00030798,2]
[404896304,1770660642751,-32514.56643715,0.0003095,2]
[404896305,1770660642760,-51623.78533709,0.00031,2]
[404896306,1770660642770,-1000.0,0.00031132,2]
[404896307,1770660642782,-549.96992372,0.00031253,2]
[404896308,1770660642793,-1361.40869066,0.00031253,2]
[404896309,1770660642808,-5529.0,0.000313,3]
[404896310,1770660642819,-427.85681511,0.00031402,2]
[404896311,1770660642828,-6995.85329025,0.00031589,2]
[404896312,1770660642838,-20284.51,0.000316,2]
[404896313,1770660642847,-5000.0,0.00032,2]
[404896314,1770660642863,-5529.0,0.00032,5]
[404896315,1770660642872,-150.0,0.00032555,2]
[404896316,1770660642881,-681.38,0.000326,7]
[404896317,1770660642890,-512.0,0.00032616,2]
[404896318,1770660642900,-800.0,0.000327,5]
[404896319,1770660642909,-345.12,0.00032877,2]
[404896320,1770660642918,-169.18991897,0.0003296,2]
[404896321,1770660642928,-3485.0,0.00032965,2]
[404896322,1770660642937,-616.0,0.00032965,2]
[404896323,1770660642946,-198.02,0.00032965,2]
[404896324,1770660642955,-3256.0,0.00032965,2]
[404896325,1770660642964,-6587.0,0.00032965,2]
[404896326,1770660642974,-51360.30990005,0.00033,2]
[404896327,1770660642983,-26410.5609663,0.00033,2]
[404896328,1770660642992,-2030.54938838,0.00033,5]
[404896329,1770660643002,-4019.4538798,0.00033,13]
[404896330,1770660643012,-225.47,0.000331,2]
[404896331,1770660643021,-185.63,0.000331,14]
[404896332,1770660643030,-474.7242297,0.00033177,2]
[404896333,1770660643039,-213.44888405,0.00033214,2]
[404896334,1770660643048,-7437.52124446,0.00033248,2]
[404896336,1770660643057,-17709.0,0.00033552,3]
[404896338,1770660643067,-1602.44142686,0.00033796,5]
[404896339,1770660643076,-150.0,0.00033859,2]
[404896340,1770660643086,-350.0,0.00033958,2]
[404896341,1770660643095,-1000.0,0.00033991,2]
[404896342,1770660643105,-5000.0,0.00034,2]
[404896343,1770660643116,-198.57670635,0.00034003,2]
[404896344,1770660643125,-350.0,0.00034139,2]
[404896345,1770660643135,-20284.51,0.000342,2]
[404896346,1770660643144,-150.0,0.00034202,2]
[404896347,1770660643153,-1000.0,0.00034243,2]
[404896348,1770660643163,-1000.0,0.00034305,2]
[404896349,1770660643172,-350.0,0.00034406,2]
[404896350,1770660643181,-150.0,0.00034434,2]
[404896351,1770660643191,-150.0,0.00034514,2]
[404896352,1770660643200,-1000.0,0.00034854,2]
[404896353,1770660643209,-150.0,0.00034904,2]
[404896354,1770660643219,-7989.60618722,0.00034907,2]
[404896355,1770660643228,-499.83177324,0.00034951,2]
[404896356,1770660643237,-1000.0,0.00034976,2]
[404896357,1770660643247,-350.0,0.0003498,2]
[404896358,1770660643255,-10000.0,0.00035,2]
[404896359,1770660643264,-500.0,0.00035,2]
[404896360,1770660643274,-350.0,0.00035001,2]
[404896361,1770660643282,-1000.0,0.00035026,2]
[404896362,1770660643293,-150.0,0.00035037,2]
[404896363,1770660643302,-150.0,0.00035105,2]
[404896364,1770660643311,-150.0,0.00035141,2]
[404896365,1770660643320,-150.0,0.00035161,2]
[404896366,1770660643330,-1000.0,0.00035206,2]
[404896367,1770660643339,-1000.0,0.00035227,2]
[404896368,1770660643350,-1000.0,0.00035231,2]
[404896369,1770660643362,-150.0,0.00035243,2]
[404896370,1770660643371,-63398.97925082,0.0003526,2]
[404896371,1770660643380,-150.0,0.00035263,2]
[404896372,1770660643389,-1000.0,0.00035282,2]
[404896373,1770660643398,-1047.56500172,0.00035343,2]
[404896374,1770660643409,-150.0,0.00035349,2]
[404896375,1770660643418,-154.9702915,0.00035377,2]
[404896376,1770660643427,-1000.0,0.00035409,2]
[404896377,1770660643436,-150.0,0.00035425,2]
[404896378,1770660643446,-175.48774213,0.00035425,2]
[404896379,1770660643455,-1000.0,0.00035465,2]
[404896380,1770660643465,-150.0,0.00035546,2]
[404896381,1770660643474,-150.0,0.0003559,2]
[404896382,1770660643486,-150.8,0.000356,13]
[404896383,1770660643496,-150.0,0.00035604,2]
[404896384,1770660643505,-167996.12393224,0.0003561,2]
[404896385,1770660643514,-151.0,0.0003561,14]
[404896386,1770660643523,-208.517436,0.0003561,28]
[404896387,1770660643532,-807.683872,0.0003561,2]
[404896388,1770660643542,-314.73038,0.0003561,7]
[404896389,1770660643551,-314.73038,0.0003561,7]
[404896390,1770660643560,-314.73038,0.0003561,7]
[404896391,1770660643569,-314.73038,0.0003561,7]
[404896392,1770660643578,-155.0,0.00035614,7]
[404896393,1770660643588,-158.07193153,0.00035614,7]
[404896394,1770660643597,-1463.8939807,0.00035614,7]
[404896395,1770660643607,-280.0,0.00035615,7]
[404896396,1770660643616,-150.0,0.00035615,2]
[404896397,1770660643625,-281.14159111,0.00035615,2]
[404896398,1770660643635,-985.99353041,0.00035615,2]
[404896399,1770660643644,-536.04570719,0.00035616,7]
[404896400,1770660643654,-1556.18,0.00035616,30]
[404896401,1770660643663,-219.21696442,0.00035631,2]
[404896402,1770660643673,-305.96973744,0.00035711,3]
[404896403,1770660643682,-350.0,0.00035873,2]
[404896404,1770660643691,-2000.0,0.000359,2]
[404896405,1770660643700,-169.18991897,0.00035957,2]
[404896406,1770660643710,-1515.71,0.00035965,2]
[404896407,1770660643719,-3256.0,0.00035965,2]
[404896408,1770660643729,-6587.0,0.00035965,2]
[404896409,1770660643739,-812.62,0.00036,30]
[404896410,1770660643749,-5000.0,0.00036,2]
[404896411,1770660643758,-681.38,0.00036,14]
[404896412,1770660643767,-30688.33775309,0.00036,2]
[404896413,1770660643777,-153.375037,0.00036,31]
[404896414,1770660643790,-153.555616,0.00036,31]
[404896415,1770660643799,-20284.51,0.00036,2]
[404896416,1770660643808,-9999.99,0.00036261,2]
[404896417,1770660643819,-29999.99,0.00036261,30]
[404896418,1770660643828,-29999.99,0.00036261,2]
[404896419,1770660643837,-350.0,0.00036404,2]
[404896420,1770660643848,-1000.000001,0.00036444,30]
[404896421,1770660643860,-159.57,0.00036447,10]
[404896422,1770660643869,-1000.0,0.00036468,30]
[404896423,1770660643878,-8210.44016433,0.00036567,2]
[404896424,1770660643887,-3088.85,0.000366,30]
[404896425,1770660643896,-3088.85,0.000366,30]
[404896427,1770660643906,-3088.84,0.000366,30]
[404896428,1770660643916,-150.0,0.00036649,2]
[404896429,1770660643927,-5525.49,0.0003667,120]
[404896430,1770660643937,-521.5916443,0.00036726,2]
[404896431,1770660643947,-151.0,0.00036797,14]
[404896432,1770660643957,-1612.14363921,0.000368,2]
[404896433,1770660643966,-14707.0,0.00036877,3]
[404896435,1770660643976,-361772.3467962,0.00036888,60]
[404896437,1770660643985,-160.0,0.00037,30]
[404896439,1770660643994,-9745.88,0.00037029,2]
[404896441,1770660644003,-350.0,0.00037065,3]
[404896443,1770660644012,-184.886922,0.000372,120]
[404896445,1770660644022,-184.88692199,0.000372,120]
[404896447,1770660644031,-17669.47936968,0.000375,120]
[404896448,1770660644040,-150.0,0.000378,10]
[404896449,1770660644049,-196.12,0.00037808,60]
[404896451,1770660644058,-196.12,0.00037839,80]
[404896452,1770660644068,-196.12,0.00037869,100]
[404896453,1770660644114,-512.0,0.00037881,8]
[404896454,1770660644123,-3203.253,0.000379,60]
[404896455,1770660644132,-3203.25,0.000379,30]
[404896456,1770660644141,-3203.253,0.000379,30]
[404896457,1770660644151,-196.12,0.000379,120]
[404896458,1770660644160,-160.0,0.00038,120]
[404896459,1770660644169,-5000.0,0.00038,2]
[404896460,1770660644177,-503.2814839,0.00038,30]
[404896461,1770660644186,-162.30206834,0.00038012,2]
[404896462,1770660644195,-242.2892859,0.00038047,2]
[404896463,1770660644204,-909.61385377,0.0003807,2]
[404896464,1770660644214,-500.773019,0.00038204,2]
[404896465,1770660644223,-9977.11198116,0.00038226,2]
[404896466,1770660644232,-500.0,0.0003827,2]
[404896467,1770660644241,-350.0,0.00038282,2]
[404896468,1770660644250,-681.38,0.000383,14]
[404896469,1770660644260,-20284.51,0.000383,2]
[404896470,1770660644269,-2171.55,0.00038356,120]
[404896471,1770660644279,-250.0,0.00038356,120]
[404896472,1770660644287,-250.0,0.00038356,120]
[404896473,1770660644296,-250.0,0.00038356,120]
[404896474,1770660644305,-250.0,0.00038356,120]
[404896475,1770660644314,-250.0,0.00038356,120]
[404896476,1770660644323,-250.0,0.00038356,120]
[404896477,1770660644332,-250.0,0.00038356,120]
[404896478,1770660644341,-250.0,0.00038356,120]
[404896479,1770660644350,-250.0,0.00038356,120]
[404896480,1770660644365,-250.0,0.00038356,120]
[404896481,1770660644373,-250.0,0.00038356,120]
[404896482,1770660644382,-250.0,0.00038356,120]
[404896483,1770660644391,-250.0,0.00038356,120]
[404896484,1770660644400,-250.0,0.00038356,120]
[404896485,1770660644409,-250.0,0.00038356,120]
[404896486,1770660644418,-250.0,0.00038356,120]
[404896487,1770660644427,-250.0,0.00038356,120]
[404896488,1770660644436,-185.602916,0.00038356,120]
[404896489,1770660644445,-350.0,0.0003848,3]
[404896490,1770660644454,-150.0,0.00038482,2]
[404896491,1770660644465,-568.4590589,0.000385,2]
[404896492,1770660644475,-3000.0,0.000386,60]
[404896493,1770660644484,-500.0,0.0003877,2]
[404896494,1770660644493,-77742.93345063,0.000388,7]
[404896495,1770660644502,-500.0,0.000388,5]
[404896496,1770660644511,-500.0,0.000388,5]
[404896497,1770660644520,-500.0,0.000388,5]
[404896498,1770660644529,-501.2904335,0.000388,5]
[404896499,1770660644539,-500.77450364,0.000388,5]
[404896500,1770660644547,-500.0,0.000388,5]
[404896501,1770660644557,-500.0,0.000388,5]
[404896502,1770660644567,-607.48017178,0.000388,5]
[404896503,1770660644576,-500.0,0.000388,5]
[404896504,1770660644586,-500.0,0.000388,5]
[404896505,1770660644595,-500.0,0.000388,3]
[404896506,1770660644605,-500.0,0.000388,5]
[404896507,1770660644616,-500.0,0.000388,5]
[404896508,1770660644625,-500.0,0.000388,5]
[404896509,1770660644635,-500.0,0.000388,5]
[404896510,1770660644644,-500.0,0.000388,5]
[404896511,1770660644654,-500.0,0.000388,5]
[404896512,1770660644663,-500.0,0.000388,5]
[404896513,1770660644672,-169.83544119,0.000388,5]
[404896514,1770660644682,-500.0,0.000388,5]
[404896515,1770660644691,-500.0,0.000388,5]
[404896516,1770660644701,-500.0,0.000388,5]
[404896517,1770660644711,-500.0,0.000388,5]
[404896518,1770660644721,-500.0,0.000388,5]
[404896519,1770660644730,-500.0,0.000388,5]
[404896520,1770660644740,-500.0,0.000388,5]
[404896521,1770660644749,-166.55591118,0.000388,2]
[404896522,1770660644759,-217.87342899,0.000388,5]
[404896523,1770660644768,-500.0,0.000388,5]
[404896524,1770660644780,-500.0,0.000388,5]
[404896525,1770660644790,-500.0,0.000388,2]
[404896526,1770660644804,-163.22379102,0.000388,5]
[404896527,1770660644813,-500.0,0.000388,5]
[404896528,1770660644823,-500.0,0.000388,5]
[404896529,1770660644833,-500.0,0.000388,5]
[404896530,1770660644842,-500.0,0.000388,5]
[404896531,1770660644853,-500.0,0.000388,5]
[404896532,1770660644864,-500.0,0.000388,5]
[404896533,1770660644873,-166.43290814,0.000388,5]
[404896534,1770660644883,-302.51850462,0.00038834,2]
[404896535,1770660644892,-649.6281,0.00038888,30]
[404896536,1770660644901,-169.18991897,0.00038953,2]
[404896537,1770660644910,-3256.0,0.00038965,2]
[404896538,1770660644919,-6587.0,0.00038965,2]
[404896539,1770660644928,-160.0,0.00039,7]
[404896540,1770660644937,-350.0,0.00039159,2]
[404896541,1770660644947,-3088.85,0.000392,60]
[404896542,1770660644956,-3088.85,0.000392,60]
[404896543,1770660644966,-3088.84,0.000392,60]
[404896544,1770660644976,-278.56890319,0.00039348,5]
[404896545,1770660644989,-1000.0,0.00039348,5]
[404896546,1770660644999,-946.75686173,0.00039348,5]
[404896547,1770660645008,-1000.0,0.00039348,5]
[404896548,1770660645018,-1001.76952692,0.00039348,5]
[404896549,1770660645027,-1000.0,0.00039348,3]
[404896550,1770660645036,-614.60634748,0.00039348,5]
[404896551,1770660645046,-1000.0,0.00039348,5]
[404896552,1770660645055,-1000.0,0.00039348,5]
[404896553,1770660645064,-500.89849545,0.00039348,5]
[404896554,1770660645073,-1000.0,0.00039348,5]
[404896555,1770660645083,-305.46831933,0.00039348,5]
[404896556,1770660645093,-1000.0,0.00039348,5]
[404896557,1770660645102,-1000.0,0.00039348,5]
[404896558,1770660645113,-1000.0,0.00039348,5]
[404896559,1770660645123,-1000.0,0.00039348,5]
[404896560,1770660645132,-500.0,0.00039348,5]
[404896561,1770660645141,-1000.0,0.00039348,5]
[404896562,1770660645151,-1000.0,0.00039348,5]
[404896563,1770660645160,-1000.0,0.00039348,5]
[404896564,1770660645170,-1000.0,0.00039348,2]
[404896565,1770660645180,-1119.67330521,0.00039348,5]
[404896566,1770660645194,-500.0,0.00039348,5]
[404896567,1770660645204,-1000.0,0.00039348,5]
[404896568,1770660645214,-805.61116112,0.00039348,5]
[404896569,1770660645224,-5057.148436,0.00039582,7]
[404896570,1770660645235,-21086.1404836,0.00039582,7]
[404896571,1770660645245,-10000.01,0.00039582,7]
[404896572,1770660645254,-20000.02,0.00039582,7]
[404896573,1770660645264,-10000.01,0.00039582,7]
[404896574,1770660645273,-193323.4476782,0.00039582,7]
[404896575,1770660645283,-2000.0,0.000396,2]
[404896576,1770660645292,-3214.23,0.000396,55]
[404896577,1770660645302,-175.892067,0.00039726,120]
[404896578,1770660645311,-175.892067,0.00039726,120]
[404896579,1770660645320,-175.892067,0.00039726,120]
[404896580,1770660645330,-175.892067,0.00039726,120]
[404896581,1770660645339,-175.892067,0.00039726,120]
[404896582,1770660645349,-175.892067,0.00039726,120]
[404896583,1770660645359,-175.892067,0.00039726,120]
[404896584,1770660645368,-175.892067,0.00039726,120]
[404896585,1770660645377,-183.194782,0.00039726,120]
[404896586,1770660645386,-178.210169,0.00039726,120]
[404896587,1770660645396,-1101.854,0.00039726,120]
[404896588,1770660645406,-1101.854,0.00039726,120]
[404896589,1770660645416,-1101.854,0.00039726,120]
[404896590,1770660645426,-1101.854,0.00039726,120]
[404896591,1770660645435,-151.0,0.00039726,60]
[404896592,1770660645444,-1723.918671,0.00039726,7]
[404896593,1770660645454,-1723.918671,0.00039726,7]
[404896594,1770660645463,-10639.61391248,0.00039885,2]
[404896595,1770660645473,-504.45435492,0.00039896,5]
[404896596,1770660645483,-1086.3781423,0.00039896,5]
[404896597,1770660645492,-1500.6861044,0.00039896,3]
[404896598,1770660645502,-1006.10959782,0.00039896,5]
[404896599,1770660645511,-347.92232532,0.00039896,5]
[404896600,1770660645521,-1500.0,0.00039896,5]
[404896601,1770660645530,-1500.0,0.00039896,5]
[404896602,1770660645540,-1023.37656257,0.00039896,5]
[404896603,1770660645549,-1500.0,0.00039896,5]
[404896604,1770660645562,-1500.0,0.00039896,5]
[404896605,1770660645571,-1500.0,0.00039896,5]
[404896606,1770660645581,-684.19856458,0.00039896,5]
[404896607,1770660645591,-1500.0,0.00039896,5]
[404896608,1770660645600,-1500.0,0.00039896,2]
[404896609,1770660645612,-1500.0,0.00039896,5]
[404896610,1770660645621,-321.0,0.00039998,30]
[404896611,1770660645631,-1262.50666606,0.0004,31]
[404896612,1770660645641,-153.0,0.0004,120]
[404896613,1770660645650,-162.12781454,0.0004,8]
[404896614,1770660645660,-10000.0,0.0004,2]
[404896615,1770660645670,-500.0,0.0004,2]
[404896616,1770660645679,-155.0,0.0004,120]
[404896617,1770660645688,-50000.0,0.0004,40]
[404896618,1770660645698,-25000.0,0.0004,120]
[404896619,1770660645707,-70000.0,0.0004,50]
[404896620,1770660645716,-253.0,0.0004,30]
[404896621,1770660645726,-25000.0,0.0004,120]
[404896622,1770660645735,-14954.46,0.0004,120]
[404896623,1770660645749,-22500.0,0.0004,120]
[404896624,1770660645773,-17912.39,0.0004,120]
[404896625,1770660645794,-160.0,0.0004,120]
[404896626,1770660645808,-271.41,0.0004,120]
[404896627,1770660645819,-14717.68,0.0004,120]
[404896628,1770660645829,-152.0,0.00040143,3]
[404896629,1770660645840,-1024.30729403,0.0004017,5]
[404896630,1770660645851,-1556.71760867,0.00040254,2]
[404896631,1770660645865,-300.0,0.00040254,2]
[404896632,1770660645883,-300.0,0.00040254,2]
[404896633,1770660645899,-1556.71760867,0.00040254,2]
[404896634,1770660645911,-300.0,0.00040254,2]
[404896635,1770660645921,-300.0,0.00040254,2]
[404896636,1770660645931,-1556.71760867,0.00040254,2]
[404896637,1770660645943,-376.61093428,0.00040254,2]
[404896638,1770660645955,-446.45736636,0.00040254,2]
[404896639,1770660645966,-1556.71760867,0.00040254,2]
[404896640,1770660645977,-1556.71760867,0.00040254,2]
[404896641,1770660645988,-300.0,0.00040254,2]
[404896642,1770660646000,-500.0,0.00040254,2]
[404896643,1770660646013,-300.0,0.00040254,2]
[404896644,1770660646026,-1556.71760867,0.00040254,2]
[404896645,1770660646036,-300.0,0.00040254,2]
[404896646,1770660646047,-384.49673931,0.00040254,2]
[404896647,1770660646058,-1556.71760867,0.00040254,2]
[404896649,1770660646069,-300.0,0.00040254,2]
[404896651,1770660646080,-300.0,0.00040254,2]
[404896652,1770660646090,-300.0,0.00040254,2]
[404896653,1770660646101,-573.4805676,0.00040275,2]
[404896654,1770660646112,-681.38,0.000403,14]
[404896655,1770660646122,-22500.0,0.00040375,120]
[404896657,1770660646135,-20284.51,0.000404,2]
[404896658,1770660646148,-150.0,0.00040406,2]
[404896659,1770660646158,-2000.0,0.00040444,5]
[404896660,1770660646170,-708.8616414,0.00040444,5]
[404896661,1770660646181,-1511.63916138,0.00040444,5]
[404896662,1770660646193,-2000.0,0.00040444,5]
[404896663,1770660646204,-1448.85583062,0.00040444,5]
[404896664,1770660646216,-2000.0,0.00040444,5]
[404896665,1770660646227,-1834.55614105,0.00040444,2]
[404896666,1770660646237,-929.9949039,0.00040444,5]
[404896667,1770660646247,-242.2892859,0.00040464,2]
[404896668,1770660646257,-12012.202,0.000405,120]
[404896669,1770660646266,-12012.202,0.000405,120]
[404896670,1770660646277,-12012.2,0.000405,120]
[404896671,1770660646287,-12012.202,0.000405,90]
[404896672,1770660646297,-2171.55,0.00040547,120]
[404896673,1770660646307,-1000.0,0.00040548,2]
[404896674,1770660646316,-300.0,0.00040749,10]
[404896675,1770660646326,-300.0,0.00040749,10]
[404896676,1770660646335,-25000.0,0.0004075,120]
[404896677,1770660646345,-20843.93,0.0004075,120]
[404896678,1770660646356,-300.0,0.00040991,10]
[404896679,1770660646368,-300.0,0.00040991,10]
[404896680,1770660646378,-2500.0,0.00040992,5]
[404896681,1770660646388,-1510.93637167,0.00040992,5]
[404896682,1770660646399,-1000.0,0.00041,120]
[404896683,1770660646408,-500.0,0.00041095,120]
[404896684,1770660646418,-500.0,0.00041095,120]
[404896685,1770660646427,-500.0,0.00041095,120]
[404896686,1770660646437,-500.0,0.00041095,120]
[404896687,1770660646447,-500.0,0.00041095,120]
[404896688,1770660646456,-500.0,0.00041095,120]
[404896689,1770660646466,-500.0,0.00041095,120]
[404896690,1770660646476,-500.0,0.00041095,120]
[404896691,1770660646486,-500.0,0.00041095,120]
[404896692,1770660646495,-500.0,0.00041095,120]
[404896693,1770660646505,-435.66120521,0.00041095,120]
[404896694,1770660646515,-153.0,0.000412,120]
[404896695,1770660646524,-155.0,0.000414,120]
[404896696,1770660646535,-2272.31084228,0.0004154,10]
[404896697,1770660646544,-11743.783798,0.00041544,2]
[404896698,1770660646555,-11514.0,0.000417,117]
[404896699,1770660646565,-14529.04,0.000418,60]
[404896700,1770660646575,-14529.043,0.000418,120]
[404896701,1770660646586,-14529.043,0.000418,120]
[404896702,1770660646596,-500.0,0.0004187,3]
[404896703,1770660646606,-200.0,0.00041947,120]
[404896704,1770660646617,-169.18991897,0.00041949,2]
[404896705,1770660646627,-3256.0,0.00041965,2]
[404896706,1770660646637,-6587.0,0.00041965,2]
[404896707,1770660646647,-164.84,0.0004197,120]
[404896708,1770660646658,-500.0,0.00042,2]
[404896709,1770660646668,-5000.0,0.00042,2]
[404896710,1770660646678,-1000.0,0.00042,120]
[404896711,1770660646688,-21057.34454758,0.00042,120]
[404896712,1770660646699,-178.3954323,0.00042027,30]
[404896713,1770660646708,-615.32647349,0.0004205,2]
[404896715,1770660646719,-164.84846832,0.0004207,120]
[404896717,1770660646729,-37525.34115863,0.00042121,120]
[404896718,1770660646739,-681.38,0.000422,14]
[404896720,1770660646751,-150.0,0.00042426,120]
[404896721,1770660646762,-500.0,0.00042438,120]
[404896722,1770660646772,-500.0,0.00042438,120]
[404896723,1770660646785,-500.0,0.00042466,120]
[404896724,1770660646796,-153.0,0.000425,120]
[404896725,1770660646806,-111438.39949896,0.000425,120]
[404896726,1770660646816,-175.892067,0.000425,120]
[404896727,1770660646826,-175.892067,0.000425,120]
[404896728,1770660646836,-175.892067,0.000425,120]
[404896729,1770660646847,-175.892067,0.000425,120]
[404896730,1770660646858,-151.0,0.000425,60]
[404896731,1770660646869,-151.0,0.000425,120]
[404896732,1770660646879,-151.0,0.000425,120]
[404896733,1770660646889,-151.0,0.000425,120]
[404896734,1770660646900,-151.0,0.000425,120]
[404896735,1770660646910,-151.0,0.000425,120]
[404896736,1770660646921,-151.0,0.000425,120]
[404896737,1770660646931,-264.000551,0.000425,120]
[404896738,1770660646941,-264.000551,0.000425,120]
[404896739,1770660646951,-264.000551,0.000425,120]
[404896740,1770660646961,-264.000551,0.000425,120]
[404896741,1770660646977,-151.0,0.000425,120]
[404896742,1770660646996,-151.0,0.000425,120]
[404896743,1770660647016,-289.244532,0.000425,120]
[404896744,1770660647026,-1101.854,0.000425,120]
[404896745,1770660647037,-1101.854,0.000425,120]
[404896746,1770660647048,-1101.854,0.000425,120]
[404896747,1770660647059,-1101.854,0.000425,120]
[404896748,1770660647070,-151.0,0.000425,120]
[404896749,1770660647082,-151.0,0.000425,120]
[404896750,1770660647093,-314.73038,0.000425,7]
[404896751,1770660647103,-314.73038,0.000425,7]
[404896752,1770660647119,-314.73038,0.000425,7]
[404896753,1770660647130,-314.73038,0.000425,7]
[404896754,1770660647141,-1723.918671,0.000425,7]
[404896755,1770660647151,-500.0,0.00042521,120]
[404896756,1770660647162,-500.0,0.00042575,120]
[404896757,1770660647172,-500.0,0.00042575,120]
[404896758,1770660647183,-500.0,0.00042576,120]
[404896759,1770660647193,-9000.0,0.000426,10]
[404896760,1770660647203,-500.0,0.0004263,120]
[404896761,1770660647214,-500.0,0.00042685,120]
[404896762,1770660647224,-155.0,0.000427,120]
[404896763,1770660647235,-286.91397563,0.00042707,120]
[404896764,1770660647246,-500.0,0.00042712,120]
[404896765,1770660647257,-2171.55,0.00042739,120]
[404896766,1770660647267,-2500.0,0.0004274,7]
[404896767,1770660647278,-600.64327062,0.0004274,120]
[404896768,1770660647288,-3300.0,0.000428,120]
[404896769,1770660647299,-840.0,0.00042812,16]
[404896770,1770660647310,-840.0,0.00042842,16]
[404896771,1770660647320,-500.0,0.00042849,120]
[404896772,1770660647331,-840.0,0.0004285,16]
[404896773,1770660647342,-2875.0,0.00042858,16]
[404896774,1770660647353,-265.36160737,0.0004288,2]
[404896775,1770660647365,-159.68973416,0.000429,120]
[404896776,1770660647376,-159.68973408,0.000429,120]
[404896777,1770660647386,-159.68973408,0.000429,120]
[404896778,1770660647396,-159.68973408,0.000429,120]
[404896779,1770660647407,-159.68973408,0.000429,120]
[404896780,1770660647418,-159.68973408,0.000429,120]
[404896781,1770660647428,-159.68973408,0.000429,120]
[404896782,1770660647439,-159.68973408,0.000429,120]
[404896783,1770660647449,-159.68973408,0.000429,120]
[404896784,1770660647459,-159.68973408,0.000429,120]
[404896785,1770660647470,-159.68973408,0.000429,120]